bitfinex-derivatives/quotes_BTCF0:USTF0_20240820
["timestamp","ask_amount","ask_price","bid_price","bid_amount"]
[1724169104789,0.3608,58887.0,58886.0,3.837912]
[1724169105499,0.428711,58887.0,58886.0,3.77]
[1724169105685,0.578711,58887.0,58886.0,3.77]
[1724169106085,0.5108,58887.0,58886.0,3.837912]
[1724169106294,0.3608,58887.0,58886.0,3.837912]
[1724169106486,0.5308,58887.0,58886.0,3.837912]
[1724169106681,0.5308,58887.0,58882.0,0.3608]
[1724169107088,0.5308,58887.0,58886.0,0.067912]
[1724169107287,0.00025485,58892.0,58891.0,0.067906]
[1724169107595,0.00025485,58892.0,58891.0,0.428706]
[1724169107790,0.00025485,58892.0,58891.0,4.198706]
[1724169108193,0.01188314,58892.0,58891.0,4.198706]
[1724169109902,0.00025485,58892.0,58891.0,4.26638075]
[1724169110097,0.00025485,58892.0,58891.0,4.198706]
[1724169110295,0.00025485,58892.0,58891.0,0.428706]
[1724169110693,0.00025485,58892.0,58891.0,4.198706]
[1724169110996,0.00025485,58892.0,58891.0,4.26638358]
[1724169111197,0.00025485,58892.0,58891.0,4.26638344]
[1724169111397,0.00025485,58892.0,58891.0,4.198706]
[1724169111792,0.00025485,58892.0,58891.0,4.26638344]
[1724169111986,0.00025485,58892.0,58891.0,4.198706]
[1724169112190,0.05043904,58900.0,58898.0,0.067898]
[1724169112387,0.067896,58900.0,58898.0,0.067898]
[1724169112887,0.067899,58897.0,58896.0,0.3608]
[1724169113092,0.067901,58896.0,58894.0,0.067902]
[1724169113691,0.067901,58896.0,58885.0,0.08457271]
[1724169113692,1.2353,58895.0,58885.0,0.08457271]
[1724169113893,1.2353,58895.0,58870.0,0.00088]
[1724169113894,0.067929,58871.0,58870.0,0.00088]
[1724169114091,0.067929,58871.0,58853.0,0.05969029]
[1724169114092,0.067934,58868.0,58853.0,0.05969029]
[1724169114298,0.067934,58868.0,58850.0,0.06853817]
[1724169114299,0.4114218,58858.0,58850.0,0.06853817]
[1724169114598,0.4114218,58858.0,58840.0,0.3608]
[1724169114599,0.3608,58853.0,58840.0,0.3608]
[1724169114796,0.5108,58853.0,58844.0,0.06796]
[1724169114999,0.3608,58853.0,58852.0,0.06853817]
[1724169115205,0.00013871,58853.0,58852.0,0.06853817]
[1724169115588,0.067934,58868.0,58841.0,0.00025485]
[1724169115589,0.00813719,58860.0,58859.0,0.06853817]
[1724169115796,0.3608,58864.0,58860.0,0.06853817]
[1724169115994,0.5208,58864.0,58860.0,0.06853817]
[1724169116703,0.5208,58864.0,58863.0,0.06853817]
[1724169116704,0.3608,58864.0,58863.0,0.06853817]
[1724169118495,0.3698,58864.0,58863.0,0.06853817]
[1724169119001,0.3608,58864.0,58863.0,0.06853817]
[1724169119197,0.3728,58864.0,58863.0,0.06953817]
[1724169119601,0.3728,58864.0,58863.0,0.06853817]
[1724169119800,0.3728,58864.0,58863.0,0.06953817]
[1724169120301,0.05051645,58880.0,58863.0,0.3618]
[1724169120597,0.06749574,58884.0,58874.0,0.067926]
[1724169120598,0.067915,58884.0,58874.0,0.067926]
[1724169120802,0.067923,58877.0,58875.0,3.77]
[1724169120996,0.207923,58877.0,58875.0,3.77]
[1724169121220,0.568723,58877.0,58875.0,3.77]
[1724169121396,0.568723,58877.0,58873.0,0.00025485]
[1724169121397,0.5008,58877.0,58863.0,0.001]
[1724169121602,0.3608,58864.0,58863.0,0.001]
[1724169121795,0.8716,58864.0,58842.0,0.067962]
[1724169121997,0.8716,58864.0,58839.0,0.4853]
[1724169121998,0.3598,58850.0,58843.0,0.067962]
[1724169122404,0.3608,58853.0,58844.0,0.06796]
[1724169122601,0.00025485,58852.0,58844.0,0.06796]
[1724169123101,0.00025485,58852.0,58845.0,0.067959]
[1724169123304,0.00025485,58852.0,58848.0,0.067955]
[1724169123691,0.00025485,58852.0,58849.0,0.067954]
[1724169123896,0.00025485,58852.0,58850.0,3.77]
[1724169124107,0.3608,58857.0,58854.0,0.067949]
[1724169124302,0.3608,58857.0,58850.0,4.27976]
[1724169124303,0.3608,58857.0,58850.0,3.77]
[1724169124603,0.3608,58851.0,58850.0,3.77]
[1724169124807,0.067956,58848.0,58844.0,0.3618]
[1724169124991,0.217956,58848.0,58844.0,0.3618]
[1724169125396,0.217956,58848.0,58811.0,0.067998]
[1724169125397,0.3608,58845.0,58818.0,0.06815149]
[1724169125700,0.3608,58823.0,58818.0,0.06815149]
[1724169125901,0.3608,58823.0,58820.0,0.067988]
[1724169126100,0.3608,58823.0,58821.0,0.067987]
[1724169126291,0.3608,58823.0,58818.0,0.00016149]
[1724169126292,0.3608,58830.0,58823.0,0.067984]
[1724169126695,0.3608,58830.0,58821.0,0.00025485]
[1724169126899,0.00025485,58832.0,58822.0,0.3608]
[1724169127309,0.00025485,58832.0,58830.0,0.067976]
[1724169127901,0.00025485,58832.0,58831.0,0.62982]
[1724169128099,0.3608,58845.0,58831.0,1.02982]
[1724169128409,0.3608,58845.0,58831.0,0.1199]
[1724169128597,0.3608,58845.0,58832.0,3.77]
[1724169128797,0.3608,58845.0,58837.0,0.3608]
[1724169129103,0.3608,58845.0,58843.0,0.067962]
[1724169129912,0.3608,58845.0,58835.0,0.00025485]
[1724169130100,0.3608,58845.0,58837.0,0.006]
[1724169130302,0.3608,58838.0,58837.0,0.006]
[1724169130709,0.5108,58838.0,58837.0,0.006]
[1724169131306,0.578768,58838.0,58837.0,0.006]
[1724169131700,0.428768,58838.0,58835.0,0.00025485]
[1724169131901,0.43921929,58838.0,58835.0,0.00025485]
[1724169132497,0.43921929,58838.0,58837.0,0.068969]
[1724169132498,0.3688,58838.0,58837.0,0.068969]
[1724169132901,0.3688,58838.0,58837.0,0.067969]
[1724169133102,0.37201648,58845.0,58840.0,0.066964]
[1724169133300,0.88281648,58845.0,58840.0,0.066964]
[1724169133513,0.8716,58845.0,58835.0,0.00125485]
[1724169133713,0.3608,58845.0,58836.0,0.3608]
[1724169133908,0.3608,58845.0,58844.0,0.067961]
[1724169134705,0.0022,58847.0,58844.0,0.577761]
[1724169134909,0.067947,58856.0,58845.0,0.5098]
[1724169135107,0.067947,58856.0,58851.0,0.067952]
[1724169135303,0.067947,58856.0,58853.0,0.067949]
[1724169135505,0.3608,58858.0,58855.0,0.067948]
[1724169135698,0.5208,58858.0,58855.0,0.067948]
[1724169136805,0.5278,58858.0,58857.0,0.067946]
[1724169137206,0.3678,58858.0,58857.0,0.067946]
[1724169137704,0.3678,58858.0,58857.0,3.837946]
[1724169137908,0.3678,58858.0,58857.0,3.77]
[1724169138410,0.5178,58858.0,58857.0,3.77]
[1724169139005,0.5188,58858.0,58857.0,3.771]
[1724169140003,0.5188,58858.0,58857.0,3.838946]
[1724169140612,0.3688,58858.0,58857.0,3.838946]
[1724169140809,0.3688,58858.0,58857.0,4.416612]
[1724169141112,0.8773,58869.0,58857.0,4.68072]
[1724169141312,0.8773,58869.0,58868.0,0.067933]
[1724169141513,0.37204052,58870.0,58863.0,0.3608]
[1724169141813,0.3608,58870.0,58869.0,0.067932]
[1724169142708,0.3658,58870.0,58869.0,0.067932]
[1724169142911,0.005,58870.0,58869.0,0.067932]
[1724169143214,0.005,58870.0,58869.0,0.428732]
[1724169143412,0.005,58870.0,58869.0,0.938332]
[1724169143807,0.007,58870.0,58869.0,1.339332]
[1724169144010,0.05051645,58886.0,58871.0,0.067929]
[1724169144214,0.0022,58887.0,58874.0,0.3608]
[1724169144412,0.0022,58887.0,58872.0,0.1146]
[1724169144413,0.01124112,58887.0,58886.0,0.067912]
[1724169144714,0.42871,58888.0,58882.0,0.067916]
[1724169145111,0.42871,58888.0,58883.0,3.77]
[1724169145416,0.42871,58888.0,58883.0,3.837915]
[1724169145711,0.3723574,58888.0,58883.0,3.77]
[1724169146113,0.3608,58888.0,58887.0,0.067911]
[1724169146313,0.8773,58893.0,58892.0,0.067905]
[1724169147919,0.88882906,58893.0,58892.0,0.067905]
[1724169148507,0.88882906,58893.0,58881.0,0.00025485]
[1724169148508,0.067905,58892.0,58881.0,0.00025485]
[1724169148714,0.428717,58882.0,58881.0,0.00025485]
[1724169148911,0.428717,58882.0,58871.0,0.3608]
[1724169148912,0.067922,58878.0,58871.0,0.3608]
[1724169149225,0.4408,58874.0,58871.0,0.3608]
[1724169149411,0.4408,58881.0,58877.0,0.067922]
[1724169149607,0.5898,58881.0,58871.0,0.3608]
[1724169149812,0.60136052,58881.0,58871.0,0.3608]
[1724169150007,0.60136052,58881.0,58877.0,0.067922]
[1724169150513,0.60136052,58881.0,58878.0,0.06792]
[1724169150913,0.60136052,58881.0,58879.0,0.067919]
[1724169151118,0.36105485,58882.0,58881.0,0.067918]
[1724169151711,0.51105485,58882.0,58881.0,3.837918]
[1724169152115,0.51105485,58882.0,58871.0,0.4745]
[1724169152116,0.95185485,58882.0,58876.0,0.067923]
[1724169152319,0.3608,58877.0,58872.0,0.067928]
[1724169152524,0.4408,58873.0,58856.0,0.47]
[1724169152819,0.3608,58863.0,58856.0,0.47]
[1724169153029,0.588739,58863.0,58859.0,0.067943]
[1724169153515,0.587739,58863.0,58859.0,0.067943]
[1724169153914,0.16,58863.0,58861.0,3.77]
[1724169154115,0.44308001,58866.0,58861.0,3.77]
[1724169154317,0.3608,58863.0,58861.0,3.77]
[1724169155124,0.45218453,58866.0,58862.0,0.067939]
[1724169155321,0.45218453,58866.0,58861.0,3.77]
[1724169155322,0.01138453,58866.0,58861.0,3.77]
[1724169155514,0.00025485,58867.0,58861.0,3.77]
[1724169155917,0.00025485,58867.0,58866.0,0.067935]
[1724169156816,0.01130961,58867.0,58866.0,0.067935]
[1724169157017,0.00025485,58867.0,58866.0,0.067935]
[1724169157524,0.00025485,58867.0,58866.0,0.068935]
[1724169158520,0.01179627,58867.0,58866.0,0.001]
[1724169158737,0.15025485,58867.0,58866.0,0.001]
[1724169158924,1.02755485,58867.0,58866.0,0.001]
[1724169159723,1.02755485,58867.0,58864.0,0.067937]
[1724169159925,1.02755485,58867.0,58866.0,0.001]
[1724169160224,1.02722485,58867.0,58866.0,0.001]
[1724169160428,1.02722485,58867.0,58865.0,0.067936]
[1724169160720,1.46802485,58867.0,58866.0,0.001]
[1724169161419,1.46802485,58867.0,58866.0,0.068935]
[1724169162114,0.8773,58867.0,58866.0,0.068935]
[1724169162321,1.0273,58867.0,58866.0,0.068935]
[1724169164119,1.0273,58867.0,58866.0,0.067935]
[1724169164719,0.15,58867.0,58866.0,0.067935]
[1724169166321,0.15,58867.0,58866.0,0.068935]
[1724169166928,0.658734,58867.0,58866.0,0.001]
[1724169167827,0.70925045,58867.0,58866.0,0.001]
[1724169168030,0.658734,58867.0,58866.0,0.001]
[1724169168327,0.70925045,58867.0,58866.0,0.001]
[1724169168625,0.658734,58867.0,58866.0,0.001]
[1724169168828,0.217934,58867.0,58866.0,0.001]
[1724169169030,0.15,58867.0,58866.0,0.068935]
[1724169170528,0.26845045,58867.0,58866.0,0.068935]
[1724169171235,0.20051645,58867.0,58866.0,0.068935]
[1724169171733,0.15,58867.0,58866.0,0.068935]
[1724169173023,0.15,58867.0,58866.0,0.13687]
[1724169173223,0.00025485,58872.0,58871.0,0.067929]
[1724169173425,0.18150383,58872.0,58871.0,0.067929]
[1724169174329,0.05051645,58876.0,58875.0,0.067925]
[1724169174531,0.41131645,58880.0,58879.0,0.06792]
[1724169174731,0.5108,58880.0,58879.0,0.06792]
[1724169175137,0.5108,58880.0,58879.0,3.83792]
[1724169175633,1.05157805,58880.0,58875.0,0.3608]
[1724169175830,0.067925,58875.0,58874.0,0.00025485]
[1724169176026,0.588725,58875.0,58874.0,0.00025485]
[1724169176234,0.227925,58875.0,58874.0,0.00025485]
[1724169176632,0.588725,58875.0,58874.0,0.00025485]
[1724169177530,0.588725,58875.0,58874.0,0.05095892]
[1724169177735,0.227925,58875.0,58874.0,0.05195892]
[1724169178438,0.16,58875.0,58874.0,0.00125485]
[1724169178835,0.16,58875.0,58874.0,0.06918085]
[1724169180240,0.01125805,58880.0,58879.0,0.06792]
[1724169180442,0.05081424,58884.0,58883.0,0.067916]
[1724169180641,0.20201544,58884.0,58883.0,0.067916]
[1724169180938,0.1512012,58884.0,58883.0,0.067916]
[1724169181544,0.21869694,58884.0,58883.0,0.067916]
[1724169181732,0.1512012,58884.0,58883.0,0.067916]
[1724169182042,0.0112012,58884.0,58883.0,0.067916]
[1724169182239,0.3608,58886.0,58885.0,0.067913]
[1724169182438,0.5308,58886.0,58885.0,0.067913]
[1724169183234,0.36965321,58886.0,58885.0,0.067913]
[1724169183431,0.53965321,58886.0,58885.0,0.067913]
[1724169184043,0.53965321,58886.0,58885.0,0.068913]
[1724169184238,0.36965321,58886.0,58885.0,0.068913]
[1724169184838,0.3608,58886.0,58885.0,0.136826]
[1724169185041,0.0506827,58891.0,58890.0,0.067908]
[1724169185347,0.00906642,58891.0,58890.0,0.067908]
[1724169185540,0.0506827,58896.0,58895.0,0.067902]
[1724169185742,0.15,58896.0,58895.0,0.067902]
[1724169185948,0.2006827,58896.0,58895.0,0.067902]
[1724169186134,0.15,58896.0,58895.0,3.837902]
[1724169186535,0.0506827,58899.0,58898.0,0.067898]
[1724169186740,0.3228,58905.0,58903.0,0.067893]
[1724169186948,0.06749574,58908.0,58897.0,0.05077296]
[1724169186949,0.15,58904.0,58897.0,0.05077296]
[1724169187138,0.15,58904.0,58898.0,3.77]
[1724169187445,0.15,58904.0,58898.0,3.8817]
[1724169187832,0.15895842,58904.0,58898.0,3.8827]
[1724169188540,0.00895842,58904.0,58903.0,0.067893]
[1724169188757,0.067888,58908.0,58905.0,0.067889]
[1724169188935,0.14,58908.0,58906.0,0.067889]
[1724169189138,0.00456,58909.0,58908.0,0.067887]
[1724169189334,0.00888586,58909.0,58904.0,0.3608]
[1724169189539,1.2403,58915.0,58912.0,0.067881]
[1724169189540,1.2381,58915.0,58912.0,0.067881]
[1724169189840,1.2381,58915.0,58904.0,0.3608]
[1724169189841,1.2381,58915.0,58913.0,0.067881]
[1724169190342,1.39724799,58915.0,58913.0,0.067881]
[1724169190644,1.39724799,58915.0,58906.0,0.001]
[1724169190847,0.8016,58909.0,58906.0,0.001]
[1724169191049,0.9516,58909.0,58906.0,0.001]
[1724169191347,0.9516,58909.0,58901.0,0.00025485]
[1724169191348,0.5908,58909.0,58901.0,0.00025485]
[1724169191547,0.15,58909.0,58907.0,0.067887]
[1724169191944,1.24038001,58915.0,58911.0,0.067882]
[1724169192143,1.39701696,58915.0,58911.0,0.067882]
[1724169192443,0.06788,58914.0,58911.0,0.067882]
[1724169192645,0.22788,58914.0,58911.0,0.067882]
[1724169193146,0.22788,58914.0,58912.0,0.067882]
[1724169193748,0.16,58914.0,58913.0,0.067881]
[1724169194445,1.24933696,58915.0,58913.0,0.067881]
[1724169194647,0.53971696,58915.0,58913.0,0.067881]
[1724169195149,0.53971696,58915.0,58914.0,0.06788]
[1724169196350,0.36971696,58915.0,58914.0,0.06788]
[1724169196746,0.36971696,58915.0,58914.0,0.06888]
[1724169198042,0.53971696,58915.0,58914.0,0.06888]
[1724169198651,0.36971696,58915.0,58914.0,0.06888]
[1724169198843,0.00891696,58915.0,58914.0,0.06888]
[1724169199041,1.24038001,58916.0,58915.0,0.067879]
[1724169199237,0.3608,58916.0,58915.0,0.067879]
[1724169199551,1.2381,58921.0,58915.0,0.067879]
[1724169199552,0.0022,58921.0,58920.0,0.067873]
[1724169199747,0.15,58921.0,58920.0,0.067873]
[1724169200053,0.15,58921.0,58914.0,0.06888]
[1724169200054,0.15912352,58921.0,58914.0,0.06888]
[1724169200242,0.428678,58917.0,58915.0,0.06813263]
[1724169200441,0.5108,58917.0,58916.0,0.067878]
[1724169200845,0.578676,58917.0,58916.0,0.067878]
[1724169202051,0.9506,58917.0,58902.0,0.181193]
[1724169202245,0.3608,58912.0,58902.0,0.1133]
[1724169202447,0.4408,58910.0,58901.0,0.428694]
[1724169202656,0.06789,58905.0,58902.0,0.067893]
[1724169202846,0.23689,58905.0,58902.0,0.067893]
[1724169203450,0.3608,58906.0,58905.0,0.06789]
[1724169203646,0.5208,58906.0,58905.0,0.06789]
[1724169204442,0.59777947,58906.0,58901.0,0.3608]
[1724169204645,0.59777947,58906.0,58902.0,0.067893]
[1724169204646,0.52989047,58906.0,58902.0,0.067893]
[1724169205541,0.52989047,58906.0,58901.0,0.3608]
[1724169205741,0.067894,58902.0,58900.0,0.067895]
[1724169205946,0.067894,58902.0,58898.0,0.00025463]
[1724169205947,0.227894,58902.0,58898.0,0.00025463]
[1724169206147,0.226894,58902.0,58900.0,0.067896]
[1724169206646,0.226894,58902.0,58901.0,0.067895]
[1724169206647,0.16,58902.0,58901.0,0.067895]
[1724169208349,0.16,58902.0,58898.0,0.00025463]
[1724169208350,1.0373,58902.0,58898.0,0.00025463]
[1724169208655,0.41140782,58899.0,58890.0,0.067907]
[1724169208849,0.41140782,58899.0,58891.0,0.067906]
[1724169208850,0.3608,58892.0,58891.0,0.067906]
[1724169209151,0.3608,58892.0,58891.0,3.837906]
[1724169209152,0.4998,58892.0,58891.0,3.837906]
[1724169209346,0.14,58892.0,58891.0,3.837906]
[1724169209548,0.5008,58892.0,58891.0,3.837906]
[1724169209748,0.4998,58892.0,58891.0,3.837906]
[1724169209945,0.05058934,58895.0,58894.0,0.067903]
[1724169210147,0.87962,58896.0,58895.0,0.067902]
[1724169210449,0.8862986,58896.0,58895.0,0.067902]
[1724169210848,0.8773,58896.0,58895.0,0.067902]
[1724169211052,0.00902218,58903.0,58895.0,0.7608]
[1724169211247,0.05058934,58911.0,58903.0,0.067893]
[1724169211556,0.3608,58907.0,58904.0,0.067891]
[1724169211746,0.5108,58907.0,58904.0,0.067891]
[1724169211942,0.5108,58907.0,58896.0,0.1165]
[1724169212159,0.5110539,58907.0,58896.0,0.00025463]
[1724169212345,0.56164324,58907.0,58896.0,0.05102759]
[1724169212553,0.5110539,58907.0,58906.0,0.067889]
[1724169212853,0.56164324,58907.0,58906.0,0.067889]
[1724169213052,0.067898,58898.0,58897.0,0.05077296]
[1724169213262,0.237898,58898.0,58896.0,0.00025463]
[1724169213453,0.28854812,58898.0,58896.0,0.00025463]
[1724169213650,0.05065012,58897.0,58896.0,0.00025463]
[1724169213849,0.22065012,58897.0,58896.0,0.00025463]
[1724169214060,0.22065012,58897.0,58896.0,0.06815563]
[1724169214456,0.17,58897.0,58896.0,0.06815563]
[1724169214958,0.3608,58899.0,58897.0,0.067899]
[1724169215156,0.5108,58899.0,58898.0,0.067898]
[1724169215347,0.3608,58899.0,58898.0,0.067898]
[1724169215753,0.3608,58899.0,58896.0,0.00025463]
[1724169215754,0.05069704,58899.0,58896.0,0.00025463]
[1724169215958,0.05069704,58899.0,58898.0,0.067898]
[1724169216156,0.05069704,58899.0,58896.0,0.00025463]
[1724169216157,0.3608,58900.0,58899.0,0.067897]
[1724169216360,0.06749574,58902.0,58900.0,0.067895]
[1724169216551,0.3608,58901.0,58900.0,0.067895]
[1724169218652,0.05067529,58901.0,58900.0,0.067895]
[1724169218853,0.00884452,58903.0,58902.0,0.067894]
[1724169218854,0.0595255,58903.0,58902.0,0.067894]
[1724169219059,0.19068098,58903.0,58902.0,0.067894]
[1724169219463,0.14,58903.0,58902.0,0.067894]
[1724169219762,0.19068098,58903.0,58902.0,0.067894]
[1724169219957,0.14,58903.0,58902.0,0.067894]
[1724169220165,0.1906562,58903.0,58902.0,0.067894]
[1724169220362,0.14,58903.0,58902.0,0.067894]
[1724169221654,0.19065558,58903.0,58902.0,0.11863008]
[1724169221858,0.19065391,58903.0,58902.0,0.11863008]
[1724169222055,0.19065391,58903.0,58902.0,0.067894]
[1724169222056,0.14,58903.0,58902.0,0.067894]
[1724169222257,0.142,58903.0,58902.0,0.068894]
[1724169223066,0.209893,58903.0,58902.0,0.001]
[1724169223469,0.27738874,58903.0,58902.0,0.001]
[1724169223657,0.27838874,58903.0,58902.0,0.001]
[1724169223857,0.34628174,58903.0,58902.0,0.001]
[1724169224369,1.22358174,58903.0,58902.0,0.001]
[1724169224665,1.22360622,58903.0,58902.0,0.001]
[1724169224865,1.156086,58903.0,58902.0,0.001]
[1724169225067,1.088193,58903.0,58902.0,0.001]
[1724169225269,1.087193,58903.0,58902.0,0.001]
[1724169225863,1.0173,58903.0,58902.0,0.067894]
[1724169226059,1.0193,58903.0,58902.0,0.068894]
[1724169226658,1.06999283,58903.0,58902.0,0.068894]
[1724169227070,1.0193,58903.0,58902.0,0.068894]
[1724169227265,1.07000234,58903.0,58902.0,0.068894]
[1724169227469,1.07000556,58903.0,58902.0,0.068894]
[1724169227666,0.8793,58903.0,58902.0,0.068894]
[1724169227866,0.93000533,58903.0,58902.0,0.068894]
[1724169228170,0.8773,58903.0,58902.0,0.135788]
[1724169228369,0.8793,58903.0,58902.0,0.136788]
[1724169228558,0.93000533,58903.0,58902.0,0.18752408]
[1724169228763,0.92800533,58903.0,58902.0,0.18652408]
[1724169228962,0.9300415,58903.0,58902.0,0.18752408]
[1724169229162,0.8793,58903.0,58902.0,0.136788]
[1724169229366,0.93004205,58903.0,58902.0,0.136788]
[1724169229573,0.92982522,58903.0,58902.0,0.136788]
[1724169229971,0.92982522,58903.0,58902.0,0.1460005]
[1724169230176,0.3610539,58907.0,58906.0,0.067889]
[1724169230364,0.0002539,58907.0,58906.0,0.428689]
[1724169230676,0.0002539,58907.0,58906.0,0.61366958]
[1724169230971,0.05075687,58910.0,58906.0,4.38366958]
[1724169231271,0.13540261,58913.0,58909.0,0.05081883]
[1724169231570,0.15,58913.0,58911.0,0.3608]
[1724169231759,0.15,58913.0,58911.0,0.428683]
[1724169231760,0.05077752,58912.0,58911.0,0.428683]
[1724169231961,0.15,58913.0,58912.0,0.067882]
[1724169231962,0.05077752,58913.0,58912.0,0.067882]
[1724169232276,0.21077752,58913.0,58912.0,0.11870218]
[1724169232776,0.05981496,58914.0,58913.0,0.067881]
[1724169233072,0.05077752,58914.0,58913.0,0.135762]
[1724169233271,0.05075842,58915.0,58914.0,0.06788]
[1724169233465,0.05075842,58915.0,58912.0,0.05082018]
[1724169233466,0.135762,58913.0,58912.0,0.05082018]
[1724169233665,0.72608361,58913.0,58912.0,0.001]
[1724169233861,0.067888,58907.0,58906.0,0.3608]
[1724169234065,0.28862076,58907.0,58906.0,0.3608]
[1724169234470,0.28862076,58907.0,58906.0,0.428689]
[1724169234471,0.22073276,58907.0,58906.0,0.428689]
[1724169234770,0.17,58907.0,58906.0,0.428689]
[1724169234973,0.237888,58907.0,58904.0,0.05082018]
[1724169235173,0.23764368,58907.0,58902.0,0.05082018]
[1724169235372,0.11863209,58903.0,58901.0,0.41187481]
[1724169235674,0.05073686,58902.0,58901.0,0.41187481]
[1724169235876,0.20973686,58902.0,58901.0,0.05107481]
[1724169236175,0.16,58902.0,58901.0,0.00025463]
[1724169236566,0.16,58902.0,58901.0,0.00125463]
[1724169237172,0.161,58902.0,58901.0,0.00125463]
[1724169237865,0.161,58902.0,58901.0,0.06914963]
[1724169238172,0.161,58902.0,58901.0,0.11996981]
[1724169238674,0.001,58902.0,58901.0,0.06914963]
[1724169239070,0.141,58902.0,58901.0,0.11995383]
[1724169239271,0.141,58902.0,58901.0,0.06914963]
[1724169239471,0.141,58902.0,58901.0,0.11996433]
[1724169239678,0.151,58902.0,58901.0,0.11996433]
[1724169239978,0.151,58902.0,58901.0,0.06914963]
[1724169240369,0.151,58902.0,58901.0,0.1199642]
[1724169240565,0.151,58902.0,58901.0,0.06914963]
[1724169241568,0.21864368,58902.0,58901.0,0.06914963]
[1724169241773,0.151,58902.0,58901.0,0.06914963]
[1724169241966,0.067898,58898.0,58897.0,0.05081457]
[1724169242168,0.067898,58898.0,58894.0,0.067902]
[1724169242169,1.52339432,58898.0,58894.0,0.067902]
[1724169242366,1.52339432,58898.0,58892.0,0.05081457]
[1724169242367,1.45549532,58898.0,58892.0,0.05081457]
[1724169242581,1.38788317,58898.0,58896.0,0.0679]
[1724169243079,1.38788317,58898.0,58897.0,0.067899]
[1724169243273,1.40988317,58898.0,58897.0,0.067899]
[1724169243471,1.30747498,58898.0,58897.0,0.067899]
[1724169243770,1.03908317,58898.0,58897.0,0.428699]
[1724169244080,1.04108317,58898.0,58897.0,0.428699]
[1724169244376,1.04108317,58898.0,58897.0,4.198699]
[1724169244573,1.10698117,58898.0,58897.0,0.05181445]
[1724169244878,1.10698117,58898.0,58897.0,0.001]
[1724169245172,0.229898,58898.0,58897.0,0.001]
[1724169246779,0.229898,58898.0,58897.0,3.771]
[1724169247169,0.29748981,58898.0,58897.0,3.771]
[1724169247577,0.229898,58898.0,58897.0,3.771]
[1724169247878,0.232898,58898.0,58897.0,3.77]
[1724169248485,0.29549434,58898.0,58897.0,3.77]
[1724169248668,0.234898,58898.0,58897.0,3.77]
[1724169249279,0.30249566,58898.0,58897.0,3.77]
[1724169249479,0.234898,58898.0,58897.0,3.77]
[1724169249975,0.30249566,58898.0,58897.0,3.77]
[1724169250175,0.30349566,58898.0,58897.0,3.771]
[1724169251174,1.18057883,58898.0,58897.0,3.771]
[1724169251974,1.11268083,58898.0,58897.0,3.771]
[1724169252276,1.11268083,58898.0,58897.0,3.838899]
[1724169252477,1.04508317,58898.0,58897.0,3.838899]
[1724169257180,0.168,58898.0,58897.0,3.838899]
[1724169257976,0.168,58898.0,58897.0,3.771]
[1724169258289,0.303798,58898.0,58897.0,0.001]
[1724169258467,0.067905,58892.0,58891.0,0.00025463]
[1724169258671,0.067905,58892.0,58883.0,0.06768058]
[1724169258672,1.97378624,58892.0,58885.0,0.05081445]
[1724169258975,1.97378624,58892.0,58883.0,0.067915]
[1724169258976,0.3608,58886.0,58884.0,3.77]
[1724169259175,0.588713,58886.0,58884.0,3.77]
[1724169259371,0.588713,58886.0,58884.0,3.837915]
[1724169259882,0.067914,58885.0,58884.0,3.77]
[1724169260073,0.227914,58885.0,58884.0,3.77]
[1724169260274,0.16,58885.0,58880.0,0.05081445]
[1724169260580,0.067917,58882.0,58880.0,0.05081445]
[1724169260883,0.067917,58882.0,58881.0,3.77]
[1724169260884,0.217917,58882.0,58881.0,3.77]
[1724169261070,0.212917,58882.0,58881.0,3.77]
[1724169262872,0.15,58882.0,58881.0,3.77]
[1724169263180,1.02708317,58882.0,58881.0,3.77]
[1724169263574,1.02708317,58882.0,58881.0,3.775]
[1724169263978,1.09500017,58882.0,58881.0,3.775]
[1724169265175,1.02708317,58882.0,58881.0,3.842918]
[1724169266687,0.87708317,58882.0,58881.0,3.842918]
[1724169268678,1.04708317,58882.0,58881.0,3.842918]
[1724169268878,0.17,58882.0,58881.0,3.842918]
[1724169270683,0.17,58882.0,58881.0,3.910836]
[1724169270880,0.17,58882.0,58881.0,3.96165045]
[1724169271185,0.87928317,58885.0,58884.0,0.067915]
[1724169271380,1.02708317,58885.0,58884.0,0.067915]
[1724169273685,1.02708317,58885.0,58884.0,0.072915]
[1724169274792,0.15,58885.0,58884.0,0.072915]
[1724169275379,0.15,58885.0,58884.0,0.12372945]
[1724169275579,0.15,58885.0,58884.0,0.19164445]
[1724169275788,0.15,58885.0,58884.0,0.14083]
[1724169277989,0.00913629,58887.0,58886.0,0.067912]
[1724169278188,0.16,58887.0,58886.0,0.11864376]
[1724169278390,0.477908,58890.0,58889.0,0.067909]
[1724169278391,0.067908,58890.0,58889.0,0.067909]
[1724169278590,0.207908,58890.0,58889.0,0.067909]
[1724169279095,0.14,58890.0,58889.0,0.067909]
[1724169280297,0.00249464,58891.0,58890.0,0.135816]
[1724169280498,0.00025463,58891.0,58890.0,0.135816]
[1724169280695,0.36005463,58893.0,58892.0,0.067905]
[1724169280896,0.36005463,58893.0,58892.0,3.88865677]
[1724169281190,0.3608,58899.0,58892.0,3.77]
[1724169281392,0.3608,58899.0,58894.0,0.05074296]
[1724169281393,0.5199673,58899.0,58894.0,0.05074296]
[1724169281692,0.5199673,58899.0,58898.0,0.067899]
[1724169283692,0.5289673,58899.0,58898.0,0.067899]
[1724169283991,0.9576653,58899.0,58894.0,0.05174296]
[1724169284197,0.9576653,58899.0,58894.0,0.001]
[1724169284198,0.067902,58895.0,58894.0,0.001]
[1724169284392,0.067902,58895.0,58893.0,0.00025463]
[1724169284393,0.067903,58894.0,58893.0,0.00025463]